bitfinex/quotes_SOLUSD_20250321
["timestamp","ask_amount","ask_price","bid_price","bid_amount"]
[1742533433905,0.03,128.72,128.71,110.57687419]
[1742533444432,0.03,128.72,128.71,110.63987419]
[1742533445135,0.03,128.77,128.76,20.28432314]
[1742533445447,0.03,128.77,128.76,41.34315105]
[1742533447064,0.03,128.77,128.76,49.10945105]
[1742533449056,0.03,128.77,128.76,130.59377419]
[1742533449421,0.03,128.77,128.76,149.24342305]
[1742533454154,0.03,128.77,128.75,81.2]
[1742533454155,14.46882791,128.77,128.75,81.2]
[1742533454333,14.43882791,128.76,128.75,81.2]
[1742533454735,14.43882791,128.76,128.73,6.62]
[1742533455558,14.46882791,128.77,128.73,6.62]
[1742533455963,0.03,128.77,128.74,14.43882791]
[1742533456331,0.03,128.77,128.73,28.82652791]
[1742533456547,7.7958,128.77,128.73,21.05882791]
[1742533457052,22.23462791,128.77,128.73,6.62]
[1742533457260,7.7958,128.77,128.73,21.05882791]
[1742533457730,33.08847677,128.76,128.71,0.063]
[1742533457936,14.43882791,128.73,128.71,0.063]
[1742533458559,22.20642791,128.74,128.71,0.063]
[1742533458935,14.43882791,128.73,128.71,0.063]
[1742533459135,20.60572791,128.72,128.71,0.063]
[1742533459336,6.1669,128.72,128.71,0.063]
[1742533459757,20.60572791,128.72,128.71,0.063]
[1742533459943,22.24832791,128.72,128.71,0.063]
[1742533460143,30.01712791,128.72,128.71,0.063]
[1742533461063,22.24832791,128.72,128.71,0.063]
[1742533462638,30.01712791,128.72,128.71,0.063]
[1742533467645,48.66677677,128.72,128.71,0.063]
[1742533471961,7.8095,128.72,128.71,0.063]
[1742533472151,14.43882791,128.73,128.71,0.063]
[1742533472966,14.43882791,128.72,128.71,0.063]
[1742533473951,22.20762791,128.72,128.71,0.063]
[1742533475567,40.85727677,128.72,128.71,0.063]
[1742533476266,41.14159991,128.72,128.71,0.063]
[1742533478569,41.42592305,128.72,128.71,0.063]
[1742533478873,43.08642305,128.72,128.71,0.063]
[1742533479952,49.71032305,128.72,128.71,0.063]
[1742533481972,56.36032305,128.72,128.71,0.063]
[1742533483566,18.79181043,128.66,128.59,81.263]
[1742533483868,14.43882791,128.62,128.59,0.063]
[1742533486272,14.43882791,128.61,128.59,0.063]
[1742533486774,14.43882791,128.6,128.59,0.063]
[1742533490471,34.43882791,128.62,128.59,0.063]
[1742533493679,14.43882791,128.61,128.59,0.063]
[1742533495277,14.43882791,128.6,128.59,0.063]
[1742533497555,40.86447677,128.6,128.59,0.063]
[1742533500264,41.14879991,128.6,128.59,0.063]
[1742533502594,33.08847677,128.6,128.59,0.063]
[1742533506380,14.43882791,128.6,128.59,0.063]
[1742533507783,28.05942314,128.62,128.59,0.063]
[1742533507784,20.0,128.62,128.59,0.063]
[1742533507980,34.43882791,128.62,128.59,0.063]
[1742533508689,14.43882791,128.61,128.59,0.063]
[1742533509587,14.43882791,128.6,128.59,0.063]
[1742533509886,14.43882791,128.61,128.59,0.063]
[1742533510489,14.43882791,128.6,128.59,0.063]
[1742533511882,33.08847677,128.6,128.59,0.063]
[1742533512088,41.14879991,128.6,128.59,0.063]
[1742533514976,99.18843469,128.6,128.59,0.063]
[1742533515175,105.88843469,128.6,128.59,0.063]
[1742533516386,105.88843469,128.6,128.56,0.063]
[1742533516387,20.28432314,128.57,128.56,0.063]
[1742533516682,34.72315105,128.57,128.56,0.063]
[1742533517891,53.08847677,128.57,128.56,0.063]
[1742533522072,60.86627677,128.57,128.56,0.063]
[1742533523193,53.08847677,128.57,128.56,0.063]
[1742533524394,60.86627677,128.57,128.56,0.063]
[1742533526603,61.15059991,128.57,128.56,0.063]
[1742533527481,53.37279991,128.57,128.56,0.063]
[1742533528109,20.0,128.57,128.56,0.063]
[1742533530907,34.43882791,128.57,128.56,0.063]
[1742533539213,60.86627677,128.57,128.56,0.063]
[1742533539388,61.15059991,128.57,128.56,0.063]
[1742533548715,61.43492305,128.57,128.56,0.063]
[1742533550306,61.15059991,128.57,128.56,0.063]
[1742533550818,53.37279991,128.57,128.56,0.063]
[1742533554104,61.15059991,128.57,128.56,0.063]
[1742533563153,61.15059991,128.57,128.55,0.063]
[1742533563435,14.43882791,128.56,128.55,0.063]
[1742533564329,20.0,128.54,128.53,0.063]
[1742533564632,34.43882791,128.54,128.53,0.063]
[1742533564831,33.37279991,128.53,128.52,0.063]
[1742533565535,41.15299991,128.53,128.52,0.063]
[1742533567032,14.43882791,128.53,128.52,0.063]
[1742533567539,18.64964886,128.57,128.52,0.063]
[1742533567833,14.43882791,128.55,128.52,7.8438]
[1742533568536,14.43882791,128.54,128.52,7.8438]
[1742533569834,14.43882791,128.55,128.52,7.8438]
[1742533571339,14.43882791,128.56,128.52,7.8438]
[1742533571549,72.20221164,128.59,128.52,7.8438]
[1742533571550,14.43882791,128.57,128.52,22.28262791]
[1742533571724,14.43882791,128.57,128.52,41.73482791]
[1742533572245,14.43882791,128.56,128.52,27.296]
[1742533573147,34.43882791,128.57,128.52,41.73482791]
[1742533573319,14.43882791,128.53,128.52,0.063]
[1742533573514,34.43882791,128.53,128.52,0.063]
[1742533575514,42.21902791,128.53,128.52,0.063]
[1742533579437,61.15299991,128.53,128.52,0.063]
[1742533584039,119.19263469,128.53,128.52,0.063]
[1742533584928,61.43732305,128.53,128.52,0.063]
[1742533585524,0.28432314,128.51,128.5,0.063]
[1742533585724,40.35712305,128.51,128.5,0.063]
[1742533587159,54.26758364,128.51,128.49,0.063]
[1742533587332,14.43882791,128.5,128.49,0.063]
[1742533588851,22.22092791,128.5,128.49,0.063]
[1742533591342,41.15489991,128.5,128.49,0.063]
[1742533591944,14.43882791,128.5,128.49,0.063]
[1742533592732,22.22092791,128.5,128.49,0.063]
[1742533595131,41.15489991,128.5,128.49,0.063]
[1742533599843,41.18489991,128.5,128.49,0.063]
[1742533609049,41.18489991,128.5,128.45,0.063]
[1742533609050,20.0,128.47,128.45,0.063]
[1742533609258,18.933972,128.45,128.44,0.063]
[1742533609566,14.72315105,128.45,128.44,0.063]
[1742533610349,14.43882791,128.45,128.44,0.063]
[1742533611155,22.22392791,128.45,128.44,0.063]
[1742533611455,22.50825105,128.45,128.44,0.063]
[1742533611657,98.91321155,128.45,128.44,0.063]
[1742533612549,41.15789991,128.45,128.44,0.063]
[1742533612960,98.91321155,128.45,128.44,0.063]
[1742533613155,99.19753469,128.45,128.44,0.063]
[1742533613755,0.14216157,128.38,128.37,0.063]
[1742533614555,14.43882791,128.38,128.37,0.063]
[1742533614769,33.08847677,128.38,128.37,0.063]
[1742533618567,20.0,128.35,128.31,9.3567]
[1742533618872,14.43882791,128.34,128.31,9.3567]
[1742533619063,34.43882791,128.35,128.31,9.3567]
[1742533621390,14.43882791,128.36,128.31,43.27952791]
[1742533621686,14.43882791,128.36,128.33,7.7924]
[1742533623093,14.43882791,128.34,128.31,0.063]
[1742533623263,14.43882791,128.32,128.31,0.063]
[1742533624694,33.08847677,128.32,128.31,0.063]
[1742533625483,41.16579991,128.32,128.31,0.063]
[1742533627777,20.14216157,128.29,128.28,0.3]
[1742533628078,34.72315105,128.29,128.28,0.3]
[1742533629359,42.51795105,128.29,128.28,0.3]
[1742533629978,61.16759991,128.29,128.28,0.3]
[1742533630376,53.37279991,128.29,128.28,0.3]
[1742533631299,61.16759991,128.29,128.28,0.3]
[1742533633094,53.08847677,128.29,128.28,0.3]
[1742533633392,14.43882791,128.3,128.28,0.3]
[1742533633983,14.43882791,128.31,128.28,0.3]
[1742533634771,14.43882791,128.31,128.28,8.0953]
[1742533636970,14.43882791,128.31,128.28,0.3]
[1742533637573,14.43882791,128.3,128.28,0.3]
[1742533639876,14.43882791,128.31,128.28,8.0953]
[1742533642002,14.43882791,128.31,128.28,0.3]
[1742533642206,14.43882791,128.3,128.28,0.3]
[1742533642383,14.43882791,128.31,128.28,8.0954]
[1742533643200,14.43882791,128.31,128.28,0.3]
[1742533645003,14.72315105,128.29,128.28,0.3]
[1742533645497,14.43882791,128.29,128.28,0.3]
[1742533645692,33.08847677,128.29,128.28,0.3]
[1742533645890,18.64964886,128.29,128.28,0.3]
[1742533646201,33.08847677,128.29,128.28,0.3]
[1742533646499,18.64964886,128.29,128.28,0.3]
[1742533648682,33.08847677,128.29,128.28,0.3]
[1742533649378,33.08847677,128.3,128.28,0.3]
[1742533650800,40.88267677,128.3,128.28,0.3]
[1742533651919,33.08847677,128.3,128.28,0.3]
[1742533652715,14.43882791,128.31,128.28,0.3]
[1742533653086,33.08847677,128.3,128.28,0.3]
[1742533654016,33.08847677,128.29,128.28,0.3]
[1742533654225,33.37279991,128.29,128.28,0.3]
[1742533655016,41.16759991,128.29,128.28,0.3]
[1742533656716,33.08847677,128.29,128.28,0.3]
[1742533661428,33.08847677,128.29,128.28,0.363]
[1742533664720,20.0,128.25,128.2,7.8003]
[1742533664925,14.43882791,128.24,128.2,89.0003]
[1742533668947,14.43882791,128.23,128.2,89.0003]
[1742533669148,14.43882791,128.23,128.2,88.5003]
[1742533669554,14.43882791,128.23,128.2,81.2]
[1742533669854,14.43882791,128.23,128.2,89.0002]
[1742533670250,14.43882791,128.24,128.2,89.0002]
[1742533672347,22.23682791,128.24,128.2,89.0002]
[1742533673750,22.23682791,128.24,128.2,81.2]
[1742533674421,22.23682791,128.24,128.2,87.92]
[1742533674954,22.23682791,128.24,128.2,6.72]
[1742533676067,22.23742791,128.23,128.2,6.72]
[1742533677447,14.43882791,128.24,128.2,6.72]
[1742533677752,14.43882791,128.23,128.19,0.063]
[1742533679254,33.08847677,128.2,128.19,0.063]
[1742533680135,40.88877677,128.2,128.19,0.063]
[1742533680958,33.08847677,128.2,128.19,0.063]
[1742533683353,34.43882791,128.22,128.19,0.063]
[1742533686543,34.46882791,128.22,128.19,0.063]
[1742533688943,0.03,128.22,128.19,0.063]
[1742533690265,0.03,128.22,128.19,7.8639]
[1742533692653,14.46882791,128.22,128.19,7.8639]
[1742533692964,0.03,128.22,128.19,7.8639]
[1742533693141,14.46882791,128.22,128.19,7.8639]
[1742533693462,14.43882791,128.21,128.19,0.063]
[1742533693860,14.43882791,128.2,128.19,0.063]
[1742533694068,33.08847677,128.2,128.19,0.063]
[1742533694241,33.37279991,128.2,128.19,0.063]
[1742533694967,41.17309991,128.2,128.19,0.063]
[1742533695344,38.933972,128.16,128.15,0.063]
[1742533695542,53.37279991,128.16,128.15,0.063]
[1742533698267,53.08847677,128.16,128.15,0.063]
[1742533700350,53.37279991,128.16,128.15,0.063]
[1742533701641,53.08847677,128.16,128.15,0.063]
[1742533701845,34.43882791,128.17,128.15,0.063]
[1742533702869,14.43882791,128.16,128.15,0.063]
[1742533703078,34.43882791,128.17,128.15,0.063]
[1742533703573,20.0,128.17,128.15,0.063]
[1742533704467,34.43882791,128.17,128.15,0.063]
[1742533705874,33.08847677,128.16,128.15,0.063]
[1742533706056,18.64964886,128.16,128.15,0.063]
[1742533706258,34.43882791,128.17,128.15,0.063]
[1742533708279,20.0,128.17,128.15,0.063]
[1742533709750,18.64964886,128.18,128.15,0.063]
[1742533710672,14.46882791,128.2,128.15,14.50182791]
[1742533710860,0.03,128.2,128.16,14.43882791]
[1742533711681,0.03,128.2,128.17,7.8021]
[1742533711973,0.03,128.2,128.17,22.24092791]
[1742533712182,0.03,128.2,128.17,7.8021]
[1742533713482,0.03,128.2,128.17,22.24092791]
[1742533713997,20.03,128.2,128.18,14.43882791]
[1742533715788,20.03,128.2,128.17,48.50622791]
[1742533716290,20.03,128.2,128.17,34.0674]
[1742533716489,20.03,128.2,128.17,48.50622791]
[1742533717781,20.03,128.2,128.17,14.5621]
[1742533719364,0.03,128.2,128.18,14.43882791]
[1742533719695,0.03,128.2,128.19,14.43882791]
[1742533720576,0.03,128.2,128.19,22.23972791]
[1742533722680,0.03,128.2,128.19,7.8009]
[1742533722885,0.03,128.2,128.19,22.23972791]
[1742533735087,0.03,128.2,128.15,19.5711]
[1742533735289,18.64964886,128.18,128.15,0.063]
[1742533735687,14.43882791,128.18,128.15,0.063]
[1742533736400,22.24062791,128.18,128.15,0.063]
[1742533738503,26.45144886,128.18,128.15,0.063]
[1742533741192,14.43882791,128.16,128.15,0.063]
[1742533741507,14.72315105,128.16,128.15,0.063]
[1742533742905,33.37279991,128.16,128.15,0.063]
[1742533743207,48.21982305,128.16,128.15,0.063]
[1742533743406,48.21982305,128.16,128.06,29.00732791]
[1742533743407,14.43882791,128.11,128.06,29.00732791]
[1742533744197,14.43882791,128.11,128.06,22.24732791]
[1742533744400,14.43882791,128.11,128.06,29.02732791]
[1742533744915,33.08847677,128.12,128.06,29.02732791]
[1742533746018,14.43882791,128.11,128.06,29.02732791]
[1742533747015,14.43882791,128.11,128.06,14.5885]
[1742533747413,14.43882791,128.11,128.06,29.02732791]
[1742533749121,18.64964886,128.1,128.06,14.5885]
[1742533749413,18.64964886,128.1,128.02,9.2866469]
[1742533749414,34.43882791,128.07,128.02,25.10757481]
[1742533750719,14.43882791,128.06,128.02,10.6687469]
[1742533751524,34.43882791,128.07,128.02,10.6687469]
[1742533752303,14.43882791,128.07,128.02,10.6687469]
[1742533753834,14.43882791,128.06,128.02,10.6687469]
[1742533755332,14.43882791,128.07,128.02,10.6687469]
[1742533755632,14.43882791,128.07,128.02,25.10757481]
[1742533755821,1.5376,128.09,128.04,14.43882791]
[1742533756128,39.74897677,128.1,128.05,14.43882791]
[1742533756807,18.64964886,128.11,128.06,14.43882791]
[1742533757835,33.08847677,128.11,128.07,7.8082]
[1742533759033,14.43882791,128.1,128.07,7.8082]
[1742533759323,14.43882791,128.09,128.07,7.8082]
[1742533759724,14.43882791,128.09,128.05,7.8094]
[1742533764438,14.43882791,128.08,128.05,7.8094]
[1742533764634,14.43882791,128.08,128.04,14.5697]
[1742533764932,14.43882791,128.07,128.04,7.8097]
[1742533765133,14.43882791,128.07,128.03,7.8103]
[1742533765336,14.43882791,128.05,128.02,2.8577469]
[1742533765745,18.933972,128.04,128.02,2.8577469]
[1742533766040,14.43882791,128.05,128.02,10.6687469]
[1742533766421,1.5553,128.06,128.02,10.6687469]
[1742533766623,18.64964886,128.08,128.04,14.43882791]
[1742533766925,18.64964886,128.08,128.03,21.21882791]
[1742533767329,33.08847677,128.08,128.03,21.21882791]
[1742533767519,33.08847677,128.08,128.03,6.78]
[1742533767723,33.08847677,128.08,128.03,21.21882791]
[1742533768745,33.08847677,128.08,128.04,7.81]
[1742533769130,18.64964886,128.08,128.04,7.81]
[1742533769523,22.77412791,128.09,128.04,7.81]
[1742533769944,15.99412791,128.09,128.04,7.81]
[1742533772146,15.99412791,128.09,128.04,22.24882791]
[1742533772637,33.37279991,128.08,128.03,14.5903]
[1742533772846,14.43882791,128.06,128.03,6.78]
[1742533773745,14.43882791,128.06,128.02,91.8684469]
[1742533774444,14.43882791,128.06,128.02,98.6284469]
[1742533774740,34.43882791,128.03,128.02,2.8577469]
[1742533776627,60.89907677,128.03,128.02,2.8577469]
[1742533776823,33.08847677,128.03,128.02,2.8577469]
[1742533777037,8.09412314,128.05,128.02,2.8577469]
[1742533777038,14.43882791,128.04,128.02,2.8577469]
[1742533777737,33.08847677,128.05,128.02,2.8577469]
[1742533777941,18.64964886,128.06,128.02,10.6687469]
[1742533778143,33.08847677,128.08,128.03,14.43882791]
[1742533778825,33.08847677,128.08,128.04,7.81]
[1742533779024,20.0,128.08,128.04,29.00882791]
[1742533779220,20.0,128.08,128.04,37.30182153]
[1742533780748,20.0,128.08,128.04,14.57]
[1742533781041,20.0,128.08,128.04,37.30182153]
[1742533781348,41.38147039,128.07,128.04,6.76]
[1742533781550,22.73182153,128.06,128.04,6.76]
[1742533782425,41.38147039,128.07,128.04,6.76]
[1742533784356,41.38147039,128.07,128.04,14.5699]
[1742533786048,41.38147039,128.07,128.03,7.8106]
[1742533786556,41.38147039,128.07,128.03,7.8736]
[1742533787456,42.73182153,128.08,128.03,7.8736]
[1742533790364,20.0,128.08,128.04,29.45182153]
[1742533790559,20.0,128.08,128.05,22.73182153]
[1742533791358,20.0,128.08,128.04,6.72]
[1742533791568,18.64964886,128.07,128.04,6.72]
[1742533791767,41.38147039,128.07,128.04,6.72]
[1742533792543,42.73182153,128.08,128.04,14.53]
[1742533792743,20.0,128.08,128.04,37.26182153]
[1742533794046,20.0,128.08,128.04,14.53]
[1742533794852,42.73182153,128.08,128.04,14.53]
[1742533795853,20.0,128.08,128.04,37.26182153]
[1742533796664,22.73182153,128.09,128.04,37.26182153]
[1742533796862,22.73182153,128.1,128.05,22.73182153]
[1742533797355,26.739972,128.11,128.05,22.73182153]
[1742533797356,41.38147039,128.11,128.05,22.73182153]
[1742533797558,22.73182153,128.11,128.06,22.73182153]
[1742533798169,22.73182153,128.11,128.07,7.8082]
[1742533799270,14.5462909,128.09,128.06,7.8086]
[1742533799569,14.5462909,128.09,128.05,7.8091]
[1742533799905,14.5462909,128.08,128.04,95.73]
[1742533800060,14.5462909,128.08,128.04,14.53]
[1742533800244,22.3539909,128.08,128.04,6.72]
[1742533800450,14.5462909,128.07,128.04,6.72]
[1742533802076,22.3544909,128.07,128.04,6.72]
[1742533802279,14.5462909,128.07,128.04,14.53]
[1742533802579,14.5462909,128.07,128.04,6.72]
[1742533804181,22.3541909,128.08,128.04,6.72]
[1742533804683,14.5462909,128.08,128.04,14.53]
[1742533805876,18.64964886,128.07,128.04,14.53]
[1742533806678,14.5462909,128.08,128.04,14.53]
[1742533807267,18.64964886,128.08,128.04,14.53]
[1742533807463,14.5462909,128.09,128.04,14.53]
[1742533807682,14.5462909,128.09,128.04,29.0762909]
[1742533808476,18.64964886,128.09,128.04,29.0762909]
[1742533808669,14.5462909,128.09,128.04,48.6013909]
[1742533808865,155.89622314,128.13,128.06,14.5462909]
[1742533808866,7.8048,128.13,128.06,14.5462909]
[1742533809193,14.5462909,128.13,128.08,14.5462909]
[1742533809854,33.19593976,128.14,128.09,14.5462909]
[1742533810767,33.19593976,128.14,128.1,7.8064]
[1742533811688,18.64964886,128.14,128.1,7.8064]
[1742533811990,33.19593976,128.14,128.1,7.8064]
[1742533812965,18.67964886,128.15,128.1,22.3526909]
[1742533813160,18.67964886,128.15,128.12,14.5462909]
[1742533813490,20.03,128.15,128.11,14.5462909]
[1742533815184,20.03,128.15,128.11,22.3514909]
[1742533817471,14.5462909,128.14,128.1,14.5462909]
[1742533817771,14.5462909,128.14,128.09,14.5462909]
[1742533818294,14.5462909,128.14,128.1,14.5462909]
[1742533818495,42.3796909,128.15,128.1,22.3523909]
[1742533818990,20.03,128.15,128.11,14.5462909]
[1742533819199,20.03,128.15,128.12,14.5462909]
[1742533819493,0.03,128.15,128.12,21.3062909]
[1742533820194,0.03,128.15,128.13,14.5462909]
[1742533821207,0.03,128.15,128.08,1.5611]
[1742533821493,14.5762909,128.15,128.1,14.5462909]
[1742533821787,14.5762909,128.15,128.09,14.567]
[1742533821788,0.03,128.15,128.11,14.5462909]
[1742533824169,0.03,128.15,128.1,22.4153909]
[1742533824373,14.5762909,128.15,128.1,14.6092909]
[1742533825196,7.8039,128.14,128.1,22.4155909]
[1742533826493,22.3798909,128.15,128.1,22.4155909]
[1742533828894,22.3798909,128.15,128.11,6.76]
[1742533830503,7.8054,128.12,128.1,0.063]
[1742533830684,34.5462909,128.11,128.1,0.063]
[1742533831699,27.8057,128.11,128.1,0.063]
[1742533831894,46.45534886,128.11,128.1,0.063]
[1742533832104,61.00163976,128.11,128.1,0.063]
[1742533839716,60.70163976,128.11,128.1,0.063]
[1742533842694,60.9859629,128.11,128.1,0.063]
[1742533843109,0.28432314,128.09,128.03,1.6241]
[1742533843413,14.5462909,128.07,128.03,1.6241]
[1742533843626,14.5462909,128.06,128.03,1.6241]
[1742533844494,14.5462909,128.06,128.03,0.063]
[1742533844706,22.3556909,128.06,128.03,0.063]
[1742533846396,14.5462909,128.05,128.03,0.063]
[1742533846923,22.3562909,128.04,128.03,0.063]
[1742533847117,14.5462909,128.04,128.03,0.063]
[1742533847822,22.3558909,128.05,128.03,0.063]
[1742533848506,14.5462909,128.05,128.03,0.063]
[1742533848833,7.809,128.06,128.03,0.063]
[1742533848834,14.5462909,128.06,128.03,0.063]
[1742533849397,33.19593976,128.07,128.03,0.063]
[1742533849621,18.64964886,128.07,128.03,14.6092909]
[1742533849804,14.5462909,128.06,128.03,0.063]
[1742533851104,14.5462909,128.05,128.03,0.063]
[1742533853424,14.5462909,128.04,128.03,0.063]
[1742533854340,41.00593976,128.04,128.03,0.063]
[1742533855235,33.4802629,128.04,128.03,0.063]
[1742533861241,14.5462909,128.05,128.03,0.063]
[1742533865727,14.5462909,128.04,128.03,0.063]
[1742533866147,33.19593976,128.04,128.03,0.063]
[1742533866730,33.4802629,128.04,128.03,0.063]
[1742533867933,41.2902629,128.04,128.03,0.063]
[1742533869922,33.4802629,128.04,128.03,0.063]
[1742533871340,14.5462909,128.04,128.03,0.063]
[1742533871755,14.5462909,128.05,128.03,0.063]
[1742533872726,14.5462909,128.06,128.03,0.063]
[1742533873155,14.5462909,128.05,128.03,0.063]
[1742533874247,14.5462909,128.06,128.03,0.063]
[1742533875160,14.5462909,128.05,128.03,0.063]
[1742533876131,33.4802629,128.04,128.03,0.063]
[1742533877943,40.3202629,128.04,128.03,0.063]
[1742533878335,106.59974964,128.04,128.03,0.063]
[1742533878968,0.28432314,128.03,128.02,2.8577469]
[1742533879269,91.94974964,128.03,128.02,2.8577469]
[1742533879467,33.76458604,128.03,128.02,2.8577469]
[1742533880353,41.57518604,128.03,128.02,2.8577469]
[1742533881169,20.0,127.99,127.91,7.8179]
[1742533881467,14.5462909,127.96,127.91,22.3641909]
[1742533881653,33.19593976,127.98,127.93,14.5462909]
[1742533882366,14.5462909,127.97,127.92,22.3632909]
[1742533883741,14.5462909,127.97,127.92,22.4262909]
[1742533884636,14.5462909,127.97,127.93,6.84]
[1742533885269,14.5462909,127.96,127.93,6.84]
[1742533885479,14.5462909,127.95,127.93,6.84]
[1742533885650,14.5462909,127.94,127.92,0.063]
[1742533885973,33.19593976,127.95,127.92,0.063]
[1742533888160,20.0,127.95,127.92,0.063]
[1742533889255,33.19593976,127.97,127.93,7.8167]
[1742533889560,33.19593976,127.97,127.93,14.6567]
[1742533890157,33.19593976,127.98,127.93,14.6567]
[1742533890465,14.5462909,127.98,127.93,29.2029909]
[1742533891258,14.5462909,127.98,127.93,14.6567]
[1742533891458,14.5462909,127.97,127.93,14.6567]
[1742533893846,0.28432314,127.99,127.93,50.2958909]
[1742533894066,14.83061404,127.99,127.94,14.5462909]
[1742533894456,14.5462909,127.98,127.93,56.5250909]
[1742533894862,14.5462909,127.97,127.93,16.2077]
[1742533895050,14.5462909,127.98,127.93,50.2958909]
[1742533895748,14.5462909,127.98,127.93,50.3588909]
[1742533896070,14.5762909,127.98,127.93,50.3588909]
[1742533896365,0.03,127.98,127.93,50.3588909]
[1742533896951,0.03,127.98,127.94,14.5462909]
[1742533898251,0.03,127.98,127.95,7.8155]
[1742533899171,0.03,127.98,127.96,14.5462909]
[1742533899361,0.03,127.98,127.97,6.82]
[1742533900075,0.03,127.98,127.97,22.9172909]
[1742533900662,0.03,127.98,127.97,30.7315909]
[1742533909581,0.03,127.98,127.97,111.9315909]
[1742533914885,0.03,127.98,127.97,14.5462909]
[1742533915093,0.03,127.98,127.94,7.8161]
[1742533915387,0.03,127.98,127.94,22.3623909]
[1742533916995,0.03,127.98,127.95,14.5462909]
[1742533917871,0.03,127.98,127.94,22.3623909]
[1742533919594,0.03,127.98,127.95,22.3614909]
[1742533920090,0.03,127.98,127.95,14.5462909]
[1742533920292,0.03,127.98,127.94,22.3620909]
[1742533920887,0.03,127.98,127.95,6.8]
[1742533921887,0.03,127.98,127.95,6.863]
[1742533923381,0.03,127.98,127.95,14.6784]
[1742533926500,0.03,127.98,127.95,29.2246909]
[1742533926685,0.03,127.98,127.96,14.5462909]
[1742533927192,0.03,127.98,127.97,7.8143]
[1742533927399,0.03,127.98,127.97,22.3605909]
[1742533927601,0.03,127.98,127.97,23.9939909]
[1742533927782,0.03,127.98,127.97,105.1939909]
[1742533930408,0.03,127.98,127.97,103.5605909]
[1742533930708,0.03,127.98,127.97,89.0143]
[1742533932019,0.03,127.98,127.97,7.8143]
[1742533935109,0.03,127.98,127.97,22.3605909]
[1742533945630,0.03,127.98,127.97,22.4235909]
[1742533957640,0.03,127.98,127.97,7.8773]
[1742533959126,0.03,127.98,127.97,0.063]
[1742533965543,0.03,127.98,127.97,7.8773]
[1742533965737,0.03,127.98,127.97,22.4235909]
[1742533969449,0.03,127.98,127.97,7.8773]
[1742533979956,0.03,127.98,127.97,22.4235909]
[1742533982230,0.03,127.98,127.97,7.8773]
[1742533982633,0.03,127.98,127.97,0.063]
[1742533997871,0.03,127.98,127.97,14.6092909]
[1742533998081,0.03,127.98,127.97,22.4235909]
[1742533998644,0.03,127.98,127.97,103.6235909]
[1742534009488,0.03,127.98,127.97,22.4235909]
[1742534009786,0.03,127.98,127.97,29.1235909]
[1742534013284,0.03,127.98,127.97,29.40791404]
[1742534015184,0.03,127.98,127.97,110.60791404]
[1742534017463,0.0001,127.98,127.97,110.60791404]
[1742534021162,0.0001,127.98,127.97,110.89223718]
[1742534021366,1.554,128.05,127.99,20.0]
[1742534021568,1.554,128.05,128.02,14.5462909]
[1742534021795,1.554,128.05,128.03,6.68]
[1742534023071,1.6617,128.08,128.04,14.5462909]
[1742534023287,1.6617,128.08,128.05,14.5462909]
[1742534023683,1.6617,128.08,128.06,7.8088]
[1742534023881,6.064,128.09,128.06,22.3550909]
[1742534027687,0.03,128.1,128.08,7.8076]
[1742534028364,0.03,128.09,128.08,7.8076]
[1742534029494,0.03,128.09,128.08,22.3538909]
[1742534032972,0.03,128.09,128.07,95.6679]
[1742534033465,0.03,128.09,128.07,81.2]
[1742534033669,0.03,128.09,128.07,87.86]
[1742534034371,0.03,128.09,128.07,81.2]
[1742534036195,0.03,128.09,128.07,89.0081]
[1742534036575,0.03,128.09,128.07,81.2]
[1742534036994,0.03,128.09,128.07,14.83061404]
[1742534037194,0.03,128.09,128.08,14.5462909]
[1742534037394,0.03,128.09,128.08,95.7462909]